bitfinex-derivatives/quotes_BNBF0:USTF0_20241231
["timestamp","ask_amount","ask_price","bid_price","bid_amount"]
[1735666974685,0.353,704.36,702.72,1.04893096]
[1735666975693,0.353,704.36,702.8,1.04893096]
[1735666976192,1.48375016,704.38,702.8,1.04893096]
[1735666976392,0.26145995,704.37,702.8,1.04893096]
[1735666976616,0.26145995,704.37,702.89,1.04893096]
[1735666977092,1.48375016,704.38,702.89,1.04893096]
[1735666977292,0.352,704.36,702.92,1.04893096]
[1735666978795,0.352,704.36,703.06,1.04893096]
[1735666980892,0.352,704.36,703.05,1.04893096]
[1735666981690,0.352,704.36,703.0,1.04893096]
[1735666982986,0.352,704.36,702.72,2.73487891]
[1735666982987,0.352,704.36,703.05,1.04893096]
[1735666984304,0.352,704.36,703.12,1.04893096]
[1735666985491,0.352,704.36,703.33,1.04893096]
[1735666986502,0.352,704.36,703.12,1.04893096]
[1735666987292,0.352,704.36,702.57,2.14156739]
[1735666987293,0.352,704.36,703.16,1.04893096]
[1735666988296,1.02362021,705.22,702.63,2.14156739]
[1735666988297,1.02362021,705.2,703.24,1.04893096]
[1735666989400,0.352,705.19,703.24,1.04893096]
[1735666989602,0.352,705.19,702.94,1.25871716]
[1735666989603,0.352,705.19,703.21,1.04893096]
[1735666990803,0.352,705.19,703.33,1.04893096]
[1735666991003,0.352,705.19,703.04,5.24515285]
[1735666991203,0.352,705.19,703.05,2.51012978]
[1735666991604,0.352,705.19,702.57,2.51012978]
[1735666991904,0.352,705.19,702.57,1.32166945]
[1735666992205,1.48234392,705.18,702.56,4.05669252]
[1735666992404,1.48234392,705.18,702.56,1.32166945]
[1735666992607,1.48234392,705.18,701.33,2.50879411]
[1735666993001,1.48234392,705.18,701.34,2.73502307]
[1735666993301,1.48234392,705.18,701.35,2.50879411]
[1735666993507,1.48234392,705.18,701.36,2.73502307]
[1735666993708,1.48234392,705.18,702.82,1.05235078]
[1735666994908,1.48234392,705.18,703.19,1.05235078]
[1735666996309,0.352,705.19,703.19,1.05235078]
[1735666998008,0.352,705.19,703.21,1.05235078]
[1735666998906,0.352,705.19,703.03,1.18712466]
[1735666999108,0.352,705.19,703.03,2.50879411]
[1735666999911,0.352,705.19,703.07,1.05235078]
[1735667001313,0.352,705.19,703.07,3.55410198]
[1735667001713,0.352,705.19,703.08,2.73502307]
[1735667001913,0.352,705.19,703.08,4.05669252]
[1735667002108,0.352,705.19,703.08,1.32166945]
[1735667002416,0.26110082,705.18,702.96,2.5015793]
[1735667002617,0.352,705.19,702.96,2.5015793]
[1735667002917,0.26111148,705.18,702.96,2.5015793]
[1735667003214,0.26111774,705.17,702.96,2.5015793]
[1735667003513,0.352,705.19,702.96,2.5015793]
[1735667003913,0.26111336,705.18,702.96,2.5015793]
[1735667004110,0.352,705.19,702.89,2.5015793]
[1735667004816,0.352,705.19,702.85,1.05235078]
[1735667005417,1.48194939,705.4,702.57,2.70780872]
[1735667005811,0.26115625,705.39,702.56,2.48833016]
[1735667006008,0.26116591,705.38,701.97,5.19613888]
[1735667006213,0.26116591,705.39,701.98,2.48833016]
[1735667006511,0.26116591,705.38,702.54,1.05235078]
[1735667006711,0.351,705.38,702.54,1.05235078]
[1735667006915,0.26116591,705.37,702.54,1.05235078]
[1735667007114,0.26116591,705.36,702.54,1.05235078]
[1735667007315,0.26116591,705.35,702.55,1.33702802]
[1735667007515,0.26116591,705.34,702.55,1.33702802]
[1735667007720,0.26116591,705.33,702.55,1.33702802]
[1735667008017,0.26116591,705.32,702.55,1.33702802]
[1735667008213,0.26116591,705.31,702.55,1.33702802]
[1735667008419,0.26122433,705.3,702.55,1.33702802]
[1735667008718,0.26122433,705.29,702.76,1.05235078]
[1735667009017,0.26122433,705.28,702.76,1.05235078]
[1735667009317,0.26119572,705.27,702.76,1.05235078]
[1735667009519,0.26119572,705.37,702.76,1.05235078]
[1735667009719,0.26119572,705.36,702.82,1.05235078]
[1735667009915,0.26119572,705.35,702.82,1.05235078]
[1735667010112,0.26119572,705.34,702.82,1.05235078]
[1735667010314,0.26119572,705.33,702.82,1.05235078]
[1735667010619,0.351,705.38,702.93,1.05235078]
[1735667010620,0.26119572,705.32,702.93,1.05235078]
[1735667010820,0.26119572,705.31,702.93,1.05235078]
[1735667011020,1.48242285,705.32,702.93,1.05235078]
[1735667011323,0.26115377,705.31,702.93,1.05235078]
[1735667011618,1.48242285,705.32,702.93,1.05235078]
[1735667011820,0.26116127,705.31,702.92,1.05235078]
[1735667012620,1.48242285,705.32,702.92,1.05235078]
[1735667012822,1.48242285,705.32,702.53,1.30837849]
[1735667012823,1.48242285,705.32,702.82,1.05235078]
[1735667013018,0.26114869,705.31,702.82,1.05235078]
[1735667013214,1.48242285,705.32,702.82,1.05235078]
[1735667014018,0.26118145,705.31,703.0,1.05235078]
[1735667014321,0.26118145,705.3,703.0,1.05235078]
[1735667014522,0.26118145,705.29,703.0,1.05235078]
[1735667014826,0.26118145,705.28,703.0,1.05235078]
[1735667015023,0.26118145,705.27,703.0,1.05235078]
[1735667015224,0.26118145,705.26,703.36,1.05235078]
[1735667015521,0.26125395,705.25,703.36,1.05235078]
[1735667015729,0.26128475,705.24,703.36,1.05235078]
[1735667015923,0.26128475,705.23,703.36,1.05235078]
[1735667016124,0.26128702,705.22,703.16,1.05235078]
[1735667016326,0.26128702,705.31,703.16,1.05235078]
[1735667016521,0.26128702,705.21,703.16,1.05235078]
[1735667016721,0.26128702,705.3,703.16,1.05235078]
[1735667016917,0.26128702,705.2,703.16,1.05235078]
[1735667017116,0.26128702,705.2,702.88,1.05235078]
[1735667017422,0.26128702,705.19,702.88,1.05235078]
[1735667017622,0.26128702,705.31,702.88,1.05235078]
[1735667017822,0.26128702,705.3,702.88,1.05235078]
[1735667018021,0.26128702,705.29,702.88,1.05235078]
[1735667018219,1.48242285,705.32,702.82,1.05235078]
[1735667018220,0.26128702,705.28,702.82,1.05235078]
[1735667018423,0.26128702,705.27,702.82,1.05235078]
[1735667018618,1.48242285,705.32,702.82,1.05235078]
[1735667018825,0.26132831,705.31,702.82,1.05235078]
[1735667019032,0.26132831,705.3,702.82,1.05235078]
[1735667019224,0.26132831,705.29,702.82,1.05235078]
[1735667019423,0.26132831,705.28,702.82,1.05235078]
[1735667019627,0.26132831,705.27,702.61,1.05235078]
[1735667019829,0.26132831,705.26,702.61,1.05235078]
[1735667020025,1.48242285,705.32,702.61,1.05235078]
[1735667020426,0.26132904,705.31,702.61,1.05235078]
[1735667020631,0.26132904,705.31,702.0,1.05235078]
[1735667021228,0.26132904,705.3,702.0,1.05235078]
[1735667021434,0.26132904,705.29,702.0,1.05235078]
[1735667021634,0.26132904,705.28,702.07,1.05235078]
[1735667021834,0.26132904,705.27,702.07,1.05235078]
[1735667022035,0.26132904,705.26,702.07,1.05235078]
[1735667022236,0.26132904,705.25,702.07,1.05235078]
[1735667022435,0.26132904,705.24,702.07,1.05235078]
[1735667022639,1.03073897,705.16,702.74,1.05235078]
[1735667022832,0.26132904,705.15,702.74,1.05235078]
[1735667023037,0.26132904,705.14,702.74,1.05235078]
[1735667023237,0.26132904,705.13,702.74,1.05235078]
[1735667023432,0.26132904,705.15,702.74,1.05235078]
[1735667023732,0.26132904,705.14,702.79,1.05235078]
[1735667023933,0.26132904,705.13,702.79,1.05235078]
[1735667024138,0.26132904,705.12,702.79,1.05235078]
[1735667024438,0.26127823,705.11,702.79,1.05235078]
[1735667024644,1.48331273,705.23,702.79,1.05235078]
[1735667024645,0.26127823,705.22,702.79,1.05235078]
[1735667024840,0.26127823,705.21,702.79,1.05235078]
[1735667025141,1.48331273,705.23,702.51,1.31108391]
[1735667025142,0.26127823,705.2,702.74,1.05235078]
[1735667025438,1.48331273,705.23,702.74,1.05235078]
[1735667025634,0.26124634,705.22,702.74,1.05235078]
[1735667026036,0.26124634,705.22,702.82,1.05235078]
[1735667026833,0.26124634,705.22,702.85,1.05235078]
[1735667027840,0.26124634,705.21,702.89,1.05235078]
[1735667028040,1.48331273,705.23,702.89,1.05235078]
[1735667029241,1.48331273,705.23,701.96,1.05235078]
[1735667030341,1.48331273,705.23,701.95,1.05235078]
[1735667031042,0.26133331,705.22,701.95,1.05235078]
[1735667031440,1.48331273,705.23,701.99,1.05235078]
[1735667031637,0.2613511,705.22,701.99,1.05235078]
[1735667032142,0.26134108,705.21,701.99,1.05235078]
[1735667032344,0.26134108,705.22,701.99,1.05235078]
[1735667032541,0.26134108,705.21,701.99,1.05235078]
[1735667032838,0.26134108,705.2,702.45,1.05235078]
[1735667033039,0.26134108,705.19,702.45,1.05235078]
[1735667033240,1.48331273,705.23,702.45,1.05235078]
[1735667033241,0.26134108,705.18,702.45,1.05235078]
[1735667033441,0.26134108,705.17,702.45,1.05235078]
[1735667033649,0.26134108,705.16,702.45,1.05235078]
[1735667033838,0.61234108,705.15,702.45,1.05235078]
[1735667034043,0.26134108,705.14,702.45,1.05235078]
[1735667034244,0.26134108,705.14,702.54,1.05235078]
[1735667034542,1.74462747,705.14,702.54,1.05235078]
[1735667034737,0.26134108,705.13,702.54,1.05235078]
[1735667035539,0.26134108,705.13,702.53,1.05235078]
[1735667036449,0.26134108,705.13,702.6,1.05235078]
[1735667037647,0.26134108,705.13,702.64,1.05235078]
[1735667037849,0.26139811,705.12,702.64,1.05235078]
[1735667038049,1.48328639,705.14,702.64,1.05235078]
[1735667038251,0.26137854,705.13,702.64,1.05235078]
[1735667038546,0.26137854,705.13,702.09,1.05235078]
[1735667039249,0.26138773,705.12,702.09,1.05235078]
[1735667039450,0.26138773,705.13,702.09,1.05235078]
[1735667039652,1.48328639,705.14,702.09,1.05235078]
[1735667039851,0.28363966,705.12,702.12,1.05235078]
[1735667040251,0.26138315,705.11,702.12,1.05235078]
[1735667040652,0.26138315,705.11,702.18,1.05235078]
[1735667041752,0.26138315,705.11,702.13,1.05235078]
[1735667042653,0.26138315,705.1,702.13,1.05235078]
[1735667042954,0.28363966,705.12,702.26,1.05235078]
[1735667042955,0.26138315,705.09,702.26,1.05235078]
[1735667043147,0.28365977,705.07,702.26,1.05235078]
[1735667043352,0.26138315,705.06,702.26,1.05235078]
[1735667043557,0.28365977,705.07,702.26,1.05235078]
[1735667043752,0.2613305,705.06,702.26,1.05235078]
[1735667044050,0.28367184,705.04,702.83,1.05235078]
[1735667044258,0.2613305,705.03,702.83,1.05235078]
[1735667045253,0.2613305,705.03,702.89,1.05235078]
[1735667045956,0.2613305,705.03,702.91,0.28453144]
[1735667046151,0.28368391,705.01,702.95,1.05235078]
[1735667046448,0.26132529,705.0,702.97,0.28450716]
[1735667046949,0.28369599,704.98,702.97,0.28450716]
[1735667047156,0.26132529,704.97,702.97,0.28450716]
[1735667047647,0.28370806,704.95,702.97,0.28450716]
[1735667047853,0.26132529,704.94,702.97,0.28450716]
[1735667048154,0.28372013,704.92,702.97,0.28450716]
[1735667048354,0.26132529,704.91,702.97,0.28450716]
[1735667048654,0.28372013,704.92,702.97,0.28450716]
[1735667048955,0.26139076,704.91,702.97,0.28450716]
[1735667049655,1.03073897,704.8,702.97,0.28450716]
[1735667049853,0.26139076,704.79,702.97,0.28450716]
[1735667050051,0.63377649,704.78,702.97,0.28450716]
[1735667050248,0.54517834,704.77,702.97,0.28450716]
[1735667050453,0.54518237,704.76,702.97,0.28450716]
[1735667050655,0.26139782,704.75,702.97,0.28450716]
[1735667051253,0.28378455,704.76,702.97,0.28450716]
[1735667051557,0.26140438,704.75,702.97,0.28450716]
[1735667052055,0.26140438,704.74,702.97,0.28450716]
[1735667052254,0.26140438,704.73,702.97,0.28450716]
[1735667052455,1.03073897,704.63,703.09,1.05235078]
[1735667052650,0.26140438,704.62,703.09,1.05235078]
[1735667053657,0.26140438,704.62,703.1,1.05235078]
[1735667053857,0.26142323,704.61,703.1,1.05235078]
[1735667054058,0.26142323,704.6,703.1,1.05235078]
[1735667054257,0.26142323,704.59,703.1,1.05235078]
[1735667054457,0.26142323,704.58,703.1,1.05235078]
[1735667054661,0.26143921,704.57,703.1,1.05235078]
[1735667054853,0.28378455,704.76,702.97,0.28450716]
[1735667054854,0.26143921,704.56,702.97,0.28450716]
[1735667055056,0.26143921,704.55,702.97,0.28450716]
[1735667056363,1.48344446,704.56,702.97,0.28450716]
[1735667056561,0.26146568,704.55,702.97,0.28450716]
[1735667060662,0.28387316,704.54,702.97,0.28450716]
[1735667060867,0.26146568,704.53,702.97,0.28450716]
[1735667061068,0.28387316,704.54,702.97,0.28450716]
[1735667061663,0.26144592,704.53,702.97,0.28450716]
[1735667061967,0.28388122,704.52,702.97,0.28450716]
[1735667063469,0.26143117,704.51,702.97,0.28450716]
[1735667063868,0.28388928,704.5,702.97,0.28450716]
[1735667064069,0.26143117,704.49,702.97,0.28450716]
[1735667064368,1.48344446,704.56,702.97,0.28450716]
[1735667064369,0.54532793,704.48,702.97,0.28450716]
[1735667064566,0.54533196,704.47,702.97,0.28450716]
[1735667064763,0.28390137,704.47,702.97,0.28450716]
[1735667066370,0.28390137,704.47,703.08,1.05235078]
[1735667066569,0.28390137,704.47,703.09,0.2844586]
[1735667067672,0.26140052,704.46,703.09,0.2844586]
[1735667068065,0.28390137,704.47,703.09,0.2844586]
[1735667068265,0.26140823,704.46,703.09,0.2844586]
[1735667069268,0.28390137,704.47,703.09,0.2844586]
[1735667069469,0.26140055,704.46,703.1,1.05235078]
[1735667069764,0.26140055,704.46,703.11,0.28445051]
[1735667070172,0.26140955,704.45,703.11,0.28445051]
[1735667070370,0.26140955,704.44,703.11,0.28445051]
[1735667070572,0.28390137,704.47,703.11,0.28445051]
[1735667074172,0.26148153,704.46,703.11,0.28445051]
[1735667074372,0.61148153,704.46,703.11,0.28445051]
[1735667074574,0.35,704.46,703.11,0.28445051]
[1735667074770,0.26149036,704.45,703.11,0.28445051]
[1735667076371,0.28391346,704.44,703.11,0.28445051]
[1735667076572,0.26149036,704.43,703.11,0.28445051]
[1735667077075,0.28391346,704.44,703.11,0.28445051]
[1735667077376,0.28392152,704.42,702.66,1.05235078]
[1735667077675,0.26152516,704.41,702.67,0.28462863]
[1735667077876,0.26156724,704.4,702.67,0.28462863]
[1735667078076,0.26156724,704.39,702.67,0.28462863]
[1735667078369,0.26156724,704.38,702.67,0.28462863]
[1735667078570,0.26156724,704.37,702.67,0.28462863]
[1735667078875,0.26156724,704.36,702.67,0.28462863]
[1735667080175,1.48400326,704.37,702.67,0.28462863]
[1735667080377,0.26152151,704.36,702.67,0.28462863]
[1735667080877,0.28394974,704.35,702.67,0.28462863]
[1735667081177,0.26152151,704.34,702.67,0.28462863]
[1735667081376,0.2839578,704.33,702.67,0.28462863]
[1735667081578,0.26152151,704.32,702.67,0.28462863]
[1735667082180,0.2839578,704.33,702.67,0.28462863]
[1735667082381,0.26157344,704.32,702.67,0.28462863]
[1735667083676,0.28396989,704.3,702.67,0.28462863]
[1735667083879,0.26157344,704.29,702.67,0.28462863]
[1735667084778,0.26157351,704.28,702.67,0.28462863]
[1735667084982,0.26157351,704.27,702.67,0.28462863]
[1735667085182,0.26157351,704.26,702.67,0.28462863]
[1735667085381,0.26157351,704.25,702.67,0.28462863]
[1735667085582,0.26157144,704.24,702.67,0.28462863]
[1735667085779,0.26157144,704.23,702.67,0.28462863]
[1735667085984,0.26157144,704.22,702.67,0.28462863]
[1735667086181,0.26157144,704.21,702.67,0.28462863]
[1735667086381,0.26157144,704.2,702.67,0.28462863]
[1735667086582,0.26157144,704.19,702.67,0.28462863]
[1735667086781,0.26157144,704.18,702.67,0.28462863]
[1735667086988,0.26157144,704.17,702.67,0.28462863]
[1735667087187,0.26157144,704.16,702.67,0.28462863]
[1735667087381,0.28396989,704.3,702.67,0.28462863]
[1735667087382,0.26157144,704.29,702.67,0.28462863]
[1735667087690,0.26157144,704.28,702.67,0.28462863]
[1735667087987,0.26157144,704.27,702.67,0.28462863]
[1735667088189,0.26157144,704.26,702.67,0.28462863]
[1735667088384,0.26157144,704.25,702.67,0.28462863]
[1735667088587,0.26157144,704.29,702.67,0.28462863]
[1735667088790,0.26157144,704.28,702.67,0.28462863]
[1735667088988,0.26157144,704.27,702.67,0.28462863]
[1735667089985,1.48411401,704.28,702.67,0.28462863]
[1735667090191,0.26151149,704.27,702.67,0.28462863]
[1735667091091,0.28398602,704.26,702.67,0.28462863]
[1735667091290,0.26151149,704.25,702.67,0.28462863]
[1735667092403,0.28398602,704.26,702.67,0.28462863]
[1735667095594,0.35,704.25,702.67,0.28462863]
[1735667096895,0.26154645,704.24,702.67,0.28462863]
[1735667097787,0.26156194,704.23,702.67,0.28462863]
[1735667098093,0.26156194,704.22,702.67,0.28462863]
[1735667098289,0.26156194,704.21,702.67,0.28462863]
[1735667098488,0.26156194,704.2,702.67,0.28462863]
[1735667098688,0.26156194,704.19,702.67,0.28462863]
[1735667098889,0.26156194,704.18,702.67,0.28462863]
[1735667099096,0.26156194,704.17,702.67,0.28462863]
[1735667099393,0.26156194,704.16,702.67,0.28462863]
[1735667100296,0.26158188,704.15,702.67,0.28462863]
[1735667100594,0.26158188,704.14,702.67,0.28462863]
[1735667100793,0.26158188,704.13,702.67,0.28462863]
[1735667100989,1.48436722,704.17,702.67,0.28462863]
[1735667101196,0.26158614,704.16,702.67,0.28462863]
[1735667102098,1.48436722,704.17,702.67,0.28462863]
[1735667103297,0.26153143,704.16,702.67,0.28462863]
[1735667104592,0.26155589,704.15,702.67,0.28462863]
[1735667105199,0.26153143,704.16,702.67,0.28462863]
[1735667105400,0.26157003,704.15,702.68,1.0606446]
[1735667106302,0.26157003,704.15,702.67,0.28462863]
[1735667107007,0.26157003,704.14,702.67,0.28462863]
[1735667107202,0.26157003,704.13,702.67,0.28462863]
[1735667107407,0.26159343,704.12,702.67,0.28462863]
[1735667107607,0.26159343,704.11,702.67,0.28462863]
[1735667107808,0.26159343,704.1,702.67,0.28462863]
[1735667108008,0.26159343,704.09,702.67,0.28462863]
[1735667108310,0.2615998,704.08,702.67,0.28462863]
[1735667108507,0.2615998,704.07,702.67,0.28462863]
[1735667108707,1.48436722,704.17,702.67,0.28462863]
[1735667114310,0.26159524,704.16,702.67,0.28462863]
[1735667114806,1.48436722,704.17,702.67,0.28462863]
[1735667115006,0.26162222,704.15,702.67,0.28462863]
[1735667115209,0.26162222,704.14,702.67,0.28462863]
[1735667115406,0.26162222,704.13,702.67,0.28462863]
[1735667115709,1.48436722,704.17,702.67,0.28462863]
[1735667115710,0.26165731,704.12,702.67,0.28462863]
[1735667115906,0.26165731,704.11,702.67,0.28462863]
[1735667116111,0.26165731,704.1,702.67,0.28462863]
[1735667116312,0.26165731,704.09,702.67,0.28462863]
[1735667116507,0.26165731,704.08,702.67,0.28462863]
[1735667116714,0.26165731,704.07,702.67,0.28462863]
[1735667117605,0.26166789,704.06,702.67,0.28462863]
[1735667117807,0.26166789,704.05,702.67,0.28462863]
[1735667118010,0.26166789,704.04,702.67,0.28462863]
[1735667118212,0.26166789,704.03,702.67,0.28462863]
[1735667118513,1.48463108,704.08,702.67,0.28462863]
[1735667118514,0.26166789,704.02,702.67,0.28462863]
[1735667118710,0.26166789,704.01,702.67,0.28462863]
[1735667118915,0.26166789,704.0,702.67,0.28462863]
[1735667119115,0.26166789,703.99,702.67,0.28462863]
[1735667119316,0.26166789,703.98,702.67,0.28462863]
[1735667119512,0.26166789,703.97,702.67,0.28462863]
[1735667119709,0.26166789,703.96,702.67,0.28462863]
[1735667122315,0.349,703.97,702.13,1.0606446]
[1735667122616,0.26175164,703.96,702.14,0.28484347]
[1735667123220,0.349,703.97,702.14,0.28484347]
[1735667123418,0.26174361,703.96,702.14,0.28484347]
[1735667127123,1.48563988,703.95,702.14,0.28484347]
[1735667127323,0.26174361,703.94,702.14,0.28484347]
[1735667128024,0.26174361,703.94,701.36,1.0606446]
[1735667128218,0.26174361,703.93,701.38,0.28515212]
[1735667128421,0.26174361,703.92,701.38,0.28515212]
[1735667128621,0.26174361,703.91,701.38,0.28515212]
[1735667128821,0.26174361,703.9,701.38,0.28515212]
[1735667129021,0.26174361,703.89,701.38,0.28515212]
[1735667129224,1.03550501,703.83,701.38,0.28515212]
[1735667129421,0.26174361,703.82,701.38,0.28515212]
[1735667129627,0.26174361,703.81,701.38,0.28515212]
[1735667129818,0.26174361,703.8,701.38,0.28515212]
[1735667130124,0.26181843,703.79,701.38,0.28515212]
[1735667130324,0.26181843,703.94,701.38,0.28515212]
[1735667130524,0.26181843,703.93,701.38,0.28515212]
[1735667130716,1.48563988,703.95,701.38,0.28515212]
[1735667130717,0.26181843,703.92,701.38,0.28515212]
[1735667131123,0.26181843,703.94,701.38,0.28515212]
[1735667131320,0.26178987,703.93,701.38,0.28515212]
[1735667131823,0.26178987,703.92,701.38,0.28515212]
[1735667132221,0.26178987,703.91,701.38,0.28515212]
[1735667132417,0.26178987,703.94,701.38,0.28515212]
[1735667132620,0.26178987,703.93,701.38,0.28515212]
[1735667132822,0.26178987,703.94,701.38,0.28515212]
[1735667133022,0.26178987,703.93,701.38,0.28515212]
[1735667133218,1.48563988,703.95,701.38,0.28515212]
[1735667138730,0.26175825,703.94,701.38,0.28515212]
[1735667139536,1.48563988,703.95,701.38,0.28515212]
[1735667139730,0.26175864,703.94,701.38,0.28515212]
[1735667140230,0.26175864,703.94,701.5,1.0606446]
[1735667140429,1.48563988,703.95,701.5,1.0606446]
[1735667140631,0.26173829,703.94,701.5,1.0606446]
[1735667141329,0.26173829,703.94,701.64,1.0606446]
[1735667142327,0.26173829,703.94,701.65,1.0606446]
[1735667142826,1.48563988,703.95,701.65,1.0606446]
[1735667143030,0.26183266,703.94,701.65,1.0606446]
[1735667143332,1.48563988,703.95,701.65,1.0606446]
[1735667143333,0.26183266,703.93,701.65,1.0606446]
[1735667143534,1.03550501,703.9,701.51,1.0606446]
[1735667143835,0.26183266,703.89,701.51,1.0606446]
[1735667144033,0.26183266,703.88,701.51,1.0606446]
[1735667144332,0.26183266,703.87,701.51,1.0606446]
[1735667144533,0.349,703.97,701.43,1.0606446]
[1735667144534,1.03550501,703.82,701.43,1.0606446]
[1735667144728,0.26183266,703.81,701.43,1.0606446]
[1735667144933,0.26183266,703.8,701.43,1.0606446]
[1735667145133,0.26183266,703.79,701.43,1.0606446]
[1735667145331,1.03550501,703.82,701.43,1.0606446]
[1735667145528,0.26182594,703.78,701.43,1.0606446]
[1735667145735,0.26182594,703.77,701.53,1.0606446]
[1735667146036,0.26182594,703.76,701.53,1.0606446]
[1735667146231,0.26183877,703.75,701.53,1.0606446]
[1735667146432,0.26183877,703.74,701.53,1.0606446]
[1735667146633,0.26183877,703.73,701.53,1.0606446]
[1735667146829,0.26183877,703.72,701.38,0.28515212]
[1735667147032,0.26183877,703.71,701.38,0.28515212]
[1735667147235,0.26183877,703.7,701.38,0.28515212]
[1735667147534,0.26183877,703.69,701.38,0.28515212]
[1735667147835,0.61083877,703.68,701.38,0.28515212]
[1735667148135,0.26183877,703.67,701.38,0.28515212]
[1735667149134,0.26183877,703.67,701.67,1.0606446]
[1735667150631,0.2618671,703.66,701.75,1.0606446]
[1735667150834,0.2618671,703.65,701.75,1.0606446]
[1735667151130,0.2618671,703.64,701.75,1.0606446]
[1735667151335,0.2618671,703.63,701.75,1.0606446]
[1735667151635,0.2618671,703.62,701.75,1.0606446]
[1735667151937,0.349,703.68,701.56,1.0606446]
[1735667151938,0.2618671,703.61,701.56,1.0606446]
[1735667152234,0.2618671,703.6,701.56,1.0606446]
[1735667152434,0.2618671,703.59,701.56,1.0606446]
[1735667152630,0.2618671,703.58,701.56,1.0606446]
[1735667152837,0.2618671,703.57,701.58,0.28507084]
[1735667153137,0.28427261,703.55,701.58,0.28507084]
[1735667153329,0.26184974,703.54,701.58,0.28507084]
[1735667153533,0.26184974,703.53,701.58,0.28507084]
[1735667153731,0.54613447,703.52,701.58,0.28507084]
[1735667154034,0.26185399,703.51,701.58,0.28507084]
[1735667154236,0.54614277,703.51,701.71,1.0606446]
[1735667154536,0.26185399,703.5,701.71,1.0606446]
[1735667154731,0.26185399,703.5,701.72,0.28501396]
[1735667154930,0.2843009,703.48,701.72,0.28501396]
[1735667155128,0.26185399,703.47,701.72,0.28501396]
[1735667155331,0.28430898,703.46,701.72,0.28501396]
[1735667155537,0.26185399,703.45,701.72,0.28501396]
[1735667156040,0.28431707,703.44,701.72,0.28501396]
[1735667156233,0.26185399,703.43,701.72,0.28501396]
[1735667156435,0.28432515,703.42,701.72,0.28501396]
[1735667156656,0.26185399,703.41,701.72,0.28501396]
[1735667158038,1.03550501,703.39,701.72,0.28501396]
[1735667158439,0.26190556,703.38,701.72,0.28501396]
[1735667159440,0.26190556,703.37,701.72,0.28501396]
[1735667159741,0.26190556,703.36,701.72,0.28501396]
[1735667159941,0.26190556,703.35,701.72,0.28501396]
[1735667160142,0.26190556,703.34,701.72,0.28501396]
[1735667160350,0.26190556,703.33,701.72,0.28501396]
[1735667160549,0.26190556,703.32,701.72,0.28501396]
[1735667160739,0.26192817,703.31,701.72,0.28501396]
[1735667160935,0.26192817,703.4,701.72,0.28501396]
[1735667161140,0.26192817,703.39,701.72,0.28501396]
[1735667161335,0.26192817,703.38,701.72,0.28501396]
[1735667161545,0.2619335,703.37,701.72,0.28501396]
[1735667161744,1.29743851,703.36,701.72,0.28501396]
[1735667161939,0.2619335,703.35,701.72,0.28501396]
[1735667162743,0.2619335,703.34,701.72,0.28501396]
[1735667163043,0.2619335,703.33,701.72,0.28501396]
[1735667163245,0.2619335,703.32,701.72,0.28501396]
[1735667163440,0.2619335,703.31,701.72,0.28501396]
[1735667163744,0.2619335,703.3,701.72,0.28501396]
[1735667163944,0.2619335,703.29,701.72,0.28501396]
[1735667164142,0.2619335,703.28,701.72,0.28501396]
[1735667164341,0.2619335,703.27,701.72,0.28501396]
[1735667164539,0.2619335,703.26,701.72,0.28501396]
[1735667164741,0.2619335,703.25,701.72,0.28501396]
[1735667164941,0.2619335,703.24,701.72,0.28501396]
[1735667165145,0.2619335,703.33,701.72,0.28501396]
[1735667165344,1.48653363,703.24,701.72,0.28501396]
[1735667165543,0.2619547,703.23,701.72,0.28501396]
[1735667165746,0.2619547,703.22,701.72,0.28501396]
[1735667167746,1.48658655,703.23,701.72,0.28501396]
[1735667168045,0.26200403,703.21,701.72,0.28501396]
[1735667168242,0.26200403,703.2,701.72,0.28501396]
[1735667168444,1.48658655,703.23,701.72,0.28501396]
[1735667168642,0.26197262,703.22,701.72,0.28501396]
[1735667170448,0.2619969,703.21,701.72,0.28501396]
[1735667170744,0.2619969,703.2,701.72,0.28501396]
[1735667170948,0.2619969,703.19,701.72,0.28501396]
[1735667171148,0.2619969,703.18,701.72,0.28501396]
[1735667171352,0.2619969,703.17,701.72,0.28501396]
[1735667171649,0.2619969,703.16,701.72,0.28501396]
[1735667171843,0.2619969,703.15,701.72,0.28501396]
[1735667172047,1.48658655,703.23,701.72,0.28501396]
[1735667172048,0.26195773,703.14,701.72,0.28501396]
[1735667172247,0.2619554,703.13,701.72,0.28501396]
[1735667172442,1.48658655,703.23,701.72,0.28501396]
[1735667172647,0.26195008,703.22,701.72,0.28501396]
[1735667173049,1.48658655,703.23,701.72,0.28501396]
[1735667173348,0.26194509,703.22,701.72,0.28501396]
[1735667174043,0.35,703.21,701.72,0.28501396]
[1735667174647,0.26190288,703.2,701.72,0.28501396]
[1735667175449,0.26192838,703.19,701.72,0.28501396]
[1735667175646,0.26192838,703.2,701.72,0.28501396]
[1735667175847,0.26192838,703.19,701.72,0.28501396]
[1735667176145,0.26192838,703.18,701.72,0.28501396]
[1735667176345,0.26192838,703.17,701.72,0.28501396]
[1735667176546,0.26192838,703.16,701.72,0.28501396]
[1735667176749,0.26192838,703.2,701.72,0.28501396]